fUST/lending_fUST_20250317
["ID","MTS","AMOUNT","RATE_DAILY","PERIOD"]
[356278038,1742175032909,-500.0,8.219e-05,2]
[356278039,1742175032919,-500.0,8.219e-05,2]
[356278040,1742175032928,-500.0,8.219e-05,2]
[356278041,1742175032938,-500.0,8.219e-05,2]
[356278042,1742175032947,-500.0,8.219e-05,2]
[356278043,1742175032957,-500.0,8.219e-05,2]
[356278044,1742175032966,-500.0,8.219e-05,2]
[356278045,1742175032976,-500.0,8.219e-05,2]
[356278046,1742175032986,-500.0,8.219e-05,2]
[356278047,1742175032996,-501.36114711,8.219e-05,2]
[356278048,1742175033006,-500.0,8.219e-05,2]
[356278049,1742175033016,-505.49271059,8.219e-05,2]
[356278050,1742175033025,-500.0,8.219e-05,2]
[356278051,1742175033035,-500.0,8.219e-05,2]
[356278052,1742175033046,-502.9971439,8.219e-05,2]
[356278053,1742175033055,-500.0,8.219e-05,2]
[356278054,1742175033065,-500.0,8.219e-05,2]
[356278055,1742175033075,-500.0,8.219e-05,2]
[356278056,1742175033085,-586.58650872,8.219e-05,2]
[356278057,1742175033095,-500.0,8.219e-05,2]
[356278058,1742175033105,-500.0,8.219e-05,2]
[356278059,1742175033114,-500.0,8.219e-05,2]
[356278060,1742175033125,-500.0,8.219e-05,2]
[356278061,1742175033135,-500.0,8.219e-05,2]
[356278062,1742175033145,-304.89800599,8.219e-05,2]
[356278063,1742175033154,-500.0,8.219e-05,2]
[356278064,1742175033163,-500.0,8.219e-05,2]
[356278065,1742175033173,-500.0,8.219e-05,2]
[356278066,1742175033183,-500.0,8.219e-05,2]
[356278067,1742175033192,-500.0,8.219e-05,2]
[356278068,1742175033202,-500.0,8.219e-05,2]
[356278069,1742175033211,-500.0,8.219e-05,2]
[356278070,1742175033223,-500.0,8.219e-05,2]
[356278071,1742175033233,-500.0,8.219e-05,2]
[356278072,1742175033242,-500.0,8.219e-05,2]
[356278073,1742175033253,-767.25,8.219e-05,2]
[356278074,1742175033263,-500.0,8.219e-05,2]
[356278075,1742175033273,-500.0,8.219e-05,2]
[356278076,1742175033283,-514.65951519,8.219e-05,2]
[356278077,1742175033292,-500.0,8.219e-05,2]
[356278078,1742175033302,-500.0,8.219e-05,2]
[356278079,1742175033312,-500.0,8.219e-05,2]
[356278080,1742175033322,-500.0,8.219e-05,2]
[356278081,1742175033332,-500.0,8.219e-05,2]
[356278082,1742175033342,-500.0,8.219e-05,2]
[356278083,1742175033351,-500.0,8.219e-05,2]
[356278084,1742175033360,-500.0,8.219e-05,2]
[356278085,1742175033370,-500.0,8.219e-05,2]
[356278086,1742175033380,-500.0,8.219e-05,2]
[356278087,1742175033390,-500.0,8.219e-05,2]
[356278088,1742175033400,-500.0,8.219e-05,2]
[356278089,1742175033410,-500.0,8.219e-05,2]
[356278090,1742175033419,-500.0,8.219e-05,2]
[356278091,1742175033429,-500.0,8.219e-05,2]
[356278092,1742175033439,-500.0,8.219e-05,2]
[356278093,1742175033449,-500.0,8.219e-05,2]
[356278094,1742175033459,-500.0,8.219e-05,2]
[356278095,1742175033469,-386.12780598,8.219e-05,2]
[356278096,1742175033479,-500.0,8.219e-05,2]
[356278097,1742175033488,-500.0,8.219e-05,2]
[356278098,1742175033500,-500.0,8.219e-05,2]
[356278099,1742175033510,-500.0,8.219e-05,2]
[356278100,1742175033519,-500.0,8.219e-05,2]
[356278101,1742175033529,-500.0,8.219e-05,2]
[356278102,1742175033539,-500.0,8.219e-05,2]
[356278103,1742175033549,-745.08,8.219e-05,2]
[356278104,1742175033559,-500.0,8.219e-05,2]
[356278105,1742175033568,-500.0,8.219e-05,2]
[356278106,1742175033578,-918.21,8.219e-05,2]
[356278107,1742175033587,-500.0,8.219e-05,2]
[356278108,1742175033597,-307.09733436,8.219e-05,2]
[356278109,1742175033605,-500.0,8.219e-05,2]
[356278110,1742175033615,-500.0,8.219e-05,2]
[356278111,1742175033624,-500.0,8.219e-05,2]
[356278112,1742175033634,-500.0,8.219e-05,2]
[356278113,1742175033643,-610.86982288,8.219e-05,2]
[356278114,1742175033654,-500.0,8.219e-05,2]
[356278115,1742175033663,-375.03749292,8.219e-05,2]
[356278120,1742175038540,-124.96250708,8.219e-05,2]
[356278122,1742175038550,-500.0,8.219e-05,2]
[356278124,1742175038559,-500.0,8.219e-05,2]
[356278125,1742175038569,-500.0,8.219e-05,2]
[356278126,1742175038579,-500.0,8.219e-05,2]
[356278127,1742175038589,-500.0,8.219e-05,2]
[356278128,1742175038599,-500.0,8.219e-05,2]
[356278129,1742175038609,-500.0,8.219e-05,2]
[356278130,1742175038620,-500.0,8.219e-05,2]
[356278131,1742175038629,-500.0,8.219e-05,2]
[356278132,1742175038639,-500.0,8.219e-05,2]
[356278133,1742175038649,-500.0,8.219e-05,2]
[356278134,1742175038658,-639.66447237,8.219e-05,2]
[356278135,1742175038668,-500.0,8.219e-05,2]
[356278136,1742175038677,-500.0,8.219e-05,2]
[356278137,1742175038687,-500.0,8.219e-05,2]
[356278138,1742175038696,-500.0,8.219e-05,2]
[356278139,1742175038706,-500.0,8.219e-05,2]
[356278140,1742175038716,-500.0,8.219e-05,2]
[356278141,1742175038726,-500.0,8.219e-05,2]
[356278142,1742175038736,-500.0,8.219e-05,2]
[356278143,1742175038746,-500.0,8.219e-05,2]
[356278145,1742175038758,-500.0,8.219e-05,2]
[356278147,1742175038768,-500.0,8.219e-05,2]
[356278148,1742175038778,-500.0,8.219e-05,2]
[356278149,1742175038790,-500.0,8.219e-05,2]
[356278150,1742175038800,-500.0,8.219e-05,2]
[356278151,1742175038810,-500.0,8.219e-05,2]
[356278152,1742175038820,-500.0,8.219e-05,2]
[356278153,1742175038830,-541.2,8.219e-05,2]
[356278154,1742175038841,-500.0,8.219e-05,2]
[356278155,1742175038851,-500.0,8.219e-05,2]
[356278156,1742175038860,-500.0,8.219e-05,2]
[356278157,1742175038871,-500.0,8.219e-05,2]
[356278158,1742175038881,-500.0,8.219e-05,2]
[356278159,1742175038890,-500.0,8.219e-05,2]
[356278160,1742175038900,-500.0,8.219e-05,2]
[356278161,1742175038909,-500.0,8.219e-05,2]
[356278162,1742175038919,-500.0,8.219e-05,2]
[356278163,1742175038929,-2729.06,8.219e-05,2]
[356278164,1742175038939,-500.0,8.219e-05,2]
[356278165,1742175038949,-5610.07,8.219e-05,2]
[356278166,1742175038959,-500.0,8.219e-05,2]
[356278167,1742175038969,-500.0,8.219e-05,2]
[356278168,1742175038978,-13504.04,8.219e-05,2]
[356278169,1742175038988,-6245.41,8.219e-05,2]
[356278170,1742175038999,-500.0,8.219e-05,2]
[356278171,1742175039008,-1536.4,8.219e-05,2]
[356278172,1742175039018,-4693.73,8.219e-05,2]
[356278173,1742175039028,-670.18,8.219e-05,2]
[356278174,1742175039038,-2676.72,8.219e-05,2]
[356278175,1742175039048,-3318.12,8.219e-05,2]
[356278176,1742175039058,-500.0,8.219e-05,2]
[356278177,1742175039068,-525.32,8.219e-05,2]
[356278178,1742175039077,-1933.14,8.219e-05,2]
[356278179,1742175039087,-670.65,8.219e-05,2]
[356278180,1742175039096,-500.0,8.219e-05,2]
[356278181,1742175039106,-500.0,8.219e-05,2]
[356278182,1742175039116,-500.0,8.219e-05,2]
[356278183,1742175039125,-500.0,8.219e-05,2]
[356278184,1742175039135,-732.04,8.219e-05,2]
[356278185,1742175039144,-500.0,8.219e-05,2]
[356278186,1742175039155,-8855.4,8.219e-05,2]
[356278187,1742175039165,-500.0,8.219e-05,2]
[356278188,1742175039174,-145250.64,8.219e-05,2]
[356278189,1742175039183,-620.78,8.219e-05,2]
[356278190,1742175039192,-500.0,8.219e-05,2]
[356278191,1742175039201,-2942.32,8.219e-05,2]
[356278192,1742175039211,-500.0,8.219e-05,2]
[356278193,1742175039220,-3958.87,8.219e-05,2]
[356278194,1742175039229,-500.0,8.219e-05,2]
[356278195,1742175039238,-500.0,8.219e-05,2]
[356278196,1742175039249,-9547.78,8.219e-05,2]
[356278197,1742175039262,-500.0,8.219e-05,2]
[356278198,1742175039271,-8659.17,8.219e-05,2]
[356278199,1742175039280,-6230.77,8.219e-05,2]
[356278200,1742175039290,-500.0,8.219e-05,2]
[356278201,1742175039299,-6509.89,8.219e-05,2]
[356278202,1742175039308,-500.0,8.219e-05,2]
[356278203,1742175039322,-2090.17,8.219e-05,2]
[356278204,1742175039332,-500.0,8.219e-05,2]
[356278205,1742175039342,-500.0,8.219e-05,2]
[356278206,1742175039352,-500.0,8.219e-05,2]
[356278207,1742175039361,-500.0,8.219e-05,2]
[356278208,1742175039371,-500.0,8.219e-05,2]
[356278209,1742175039380,-500.0,8.219e-05,2]
[356278210,1742175039390,-500.0,8.219e-05,2]
[356278211,1742175039400,-797.35,8.219e-05,2]
[356278212,1742175039410,-500.0,8.219e-05,2]
[356278213,1742175039420,-961.13,8.219e-05,2]
[356278214,1742175039429,-500.0,8.219e-05,2]
[356278215,1742175039439,-870.32,8.219e-05,2]
[356278216,1742175039448,-500.0,8.219e-05,2]
[356278217,1742175039458,-500.0,8.219e-05,2]
[356278218,1742175039467,-748.79,8.219e-05,2]
[356278219,1742175039477,-500.0,8.219e-05,2]
[356278220,1742175039487,-500.0,8.219e-05,2]
[356278221,1742175039497,-1297.61,8.219e-05,2]
[356278222,1742175039508,-797.14,8.219e-05,2]
[356278223,1742175039517,-500.0,8.219e-05,2]
[356278224,1742175039526,-500.0,8.219e-05,2]
[356278225,1742175039536,-500.0,8.219e-05,2]
[356278226,1742175039546,-500.0,8.219e-05,2]
[356278227,1742175039555,-4164.68,8.219e-05,2]
[356278228,1742175039566,-500.0,8.219e-05,2]
[356278229,1742175039575,-500.0,8.219e-05,2]
[356278230,1742175039585,-827.13,8.219e-05,2]
[356278231,1742175039595,-500.0,8.219e-05,2]
[356278232,1742175039604,-500.0,8.219e-05,2]
[356278233,1742175039614,-500.0,8.219e-05,2]
[356278234,1742175039623,-500.0,8.219e-05,2]
[356278235,1742175039633,-1312.33,8.219e-05,2]
[356278236,1742175039642,-500.0,8.219e-05,2]
[356278237,1742175039651,-721.18,8.219e-05,2]
[356278238,1742175039662,-1501.27,8.219e-05,2]
[356278239,1742175039671,-1501.27,8.219e-05,2]
[356278240,1742175039681,-1501.27,8.219e-05,2]
[356278241,1742175039691,-1501.27,8.219e-05,2]
[356278242,1742175039700,-1501.27,8.219e-05,2]
[356278243,1742175039710,-1501.27,8.219e-05,2]
[356278244,1742175039719,-1501.27,8.219e-05,2]
[356278245,1742175039729,-1501.27,8.219e-05,2]
[356278246,1742175039738,-500.0,8.219e-05,2]
[356278247,1742175039748,-1501.27,8.219e-05,2]
[356278248,1742175039758,-1501.27,8.219e-05,2]
[356278249,1742175039767,-1501.27,8.219e-05,2]
[356278250,1742175039778,-1501.27,8.219e-05,2]
[356278251,1742175039789,-500.0,8.219e-05,2]
[356278252,1742175039803,-1501.27,8.219e-05,2]
[356278253,1742175039813,-1501.27,8.219e-05,2]
[356278254,1742175039822,-1501.27,8.219e-05,2]
[356278255,1742175039832,-1501.27,8.219e-05,2]
[356278256,1742175039842,-1501.27,8.219e-05,2]
[356278257,1742175039852,-1593.5,8.219e-05,2]
[356278258,1742175039861,-500.0,8.219e-05,2]
[356278259,1742175039871,-193.03599597,8.219e-05,2]
[356278260,1742175039881,-1501.27,8.232e-05,2]
[356278261,1742175039892,-160.0,8.291e-05,2]
[356278262,1742175039902,-833.88055864,8.291e-05,2]
[356278263,1742175039911,-417.78412626,8.291e-05,2]
[356278264,1742175039921,-2091.58851785,8.291e-05,2]
[356278265,1742175039932,-160.0,8.291e-05,2]
[356278266,1742175039942,-160.0,8.291e-05,2]
[356278267,1742175039951,-150.0,8.3e-05,2]
[356278268,1742175039961,-150.0,8.329e-05,2]
[356278269,1742175039971,-541.0,8.329e-05,2]
[356278270,1742175039981,-2267.0,8.329e-05,2]
[356278271,1742175039992,-1914.0,8.329e-05,2]
[356278272,1742175040003,-399.0,8.329e-05,2]
[356278273,1742175040013,-1501.27,8.391e-05,2]
[356278274,1742175040023,-1501.27,8.392e-05,2]
[356278275,1742175040033,-1501.27,8.392e-05,2]
[356278276,1742175040043,-1501.27,8.392e-05,2]
[356278277,1742175040054,-1501.27,8.392e-05,2]
[356278278,1742175040074,-1501.40505351,8.392e-05,2]
[356278279,1742175040086,-222000.0,8.393e-05,2]
[356278280,1742175040096,-236.196,8.411e-05,2]
[356278281,1742175040106,-500.0,8.473e-05,2]
[356278282,1742175040116,-500.0,8.473e-05,2]
[356278283,1742175040126,-500.0,8.473e-05,2]
[356278284,1742175040136,-500.0,8.493e-05,2]
[356278285,1742175040146,-500.0,8.493e-05,2]
[356278286,1742175040156,-500.0,8.493e-05,2]
[356278287,1742175040165,-500.0,8.493e-05,2]
[356278288,1742175040177,-500.0,8.493e-05,2]
[356278289,1742175040187,-500.0,8.493e-05,2]
[356278290,1742175040197,-500.0,8.493e-05,2]
[356278291,1742175040207,-500.0,8.493e-05,2]
[356278292,1742175040217,-500.0,8.493e-05,2]
[356278293,1742175040227,-500.0,8.493e-05,2]
[356278294,1742175040237,-500.0,8.493e-05,2]
[356278295,1742175040246,-500.0,8.493e-05,2]
[356278296,1742175040257,-500.0,8.493e-05,2]
[356278297,1742175040267,-500.0,8.493e-05,2]
[356278298,1742175040276,-500.0,8.493e-05,2]
[356278299,1742175040287,-500.0,8.493e-05,2]
[356278300,1742175040297,-767.25,8.493e-05,2]
[356278301,1742175040307,-500.0,8.493e-05,2]
[356278302,1742175040317,-500.0,8.493e-05,2]
[356278303,1742175040327,-588.27862882,8.493e-05,2]
[356278304,1742175040337,-500.0,8.493e-05,2]
[356278305,1742175040347,-500.0,8.493e-05,2]
[356278306,1742175040357,-500.0,8.493e-05,2]
[356278307,1742175040366,-500.0,8.493e-05,2]
[356278308,1742175040375,-500.0,8.493e-05,2]
[356278309,1742175040385,-500.0,8.493e-05,2]
[356278310,1742175040395,-745.08,8.493e-05,2]
[356278311,1742175040405,-500.0,8.493e-05,2]
[356278312,1742175040415,-500.0,8.493e-05,2]
[356278313,1742175040424,-918.21,8.493e-05,2]
[356278314,1742175040434,-500.0,8.493e-05,2]
[356278315,1742175040443,-300.0,8.493e-05,2]
[356278316,1742175040453,-500.0,8.493e-05,2]
[356278317,1742175040462,-500.0,8.493e-05,2]
[356278318,1742175040471,-500.0,8.493e-05,2]
[356278319,1742175040481,-500.0,8.493e-05,2]
[356278320,1742175040491,-500.0,8.493e-05,2]
[356278321,1742175040500,-500.0,8.493e-05,2]
[356278322,1742175040510,-500.0,8.493e-05,2]
[356278323,1742175040520,-500.0,8.493e-05,2]
[356278324,1742175040530,-500.0,8.493e-05,2]
[356278325,1742175040539,-500.0,8.493e-05,2]
[356278326,1742175040549,-500.0,8.493e-05,2]
[356278327,1742175040559,-500.0,8.493e-05,2]
[356278328,1742175040569,-500.0,8.493e-05,2]
[356278329,1742175040579,-500.0,8.493e-05,2]
[356278330,1742175040588,-500.0,8.493e-05,2]
[356278331,1742175040598,-500.0,8.493e-05,2]
[356278332,1742175040607,-500.0,8.493e-05,2]
[356278333,1742175040618,-500.0,8.493e-05,2]
[356278334,1742175040628,-500.0,8.493e-05,2]
[356278335,1742175040638,-472.77536223,8.493e-05,2]
[356278336,1742175040648,-500.0,8.493e-05,2]
[356278337,1742175040658,-500.0,8.493e-05,2]
[356278338,1742175040668,-500.0,8.493e-05,2]
[356278339,1742175040678,-500.0,8.493e-05,2]
[356278340,1742175040688,-500.0,8.493e-05,2]
[356278341,1742175040697,-500.0,8.493e-05,2]
[356278342,1742175040708,-500.0,8.493e-05,2]
[356278343,1742175040717,-541.2,8.493e-05,2]
[356278344,1742175040727,-500.0,8.493e-05,2]
[356278345,1742175040737,-500.0,8.493e-05,2]
[356278346,1742175040746,-500.0,8.493e-05,2]
[356278347,1742175040757,-500.0,8.493e-05,2]
[356278348,1742175040767,-500.0,8.493e-05,2]
[356278349,1742175040776,-500.0,8.493e-05,2]
[356278350,1742175040786,-500.0,8.493e-05,2]
[356278351,1742175040799,-2729.06,8.493e-05,2]
[356278352,1742175040809,-500.0,8.493e-05,2]
[356278353,1742175040820,-5610.07,8.493e-05,2]
[356278354,1742175040830,-500.0,8.493e-05,2]
[356278355,1742175040841,-500.0,8.493e-05,2]
[356278356,1742175040851,-13504.04,8.493e-05,2]
[356278357,1742175040862,-6245.41,8.493e-05,2]
[356278358,1742175040874,-500.0,8.493e-05,2]
[356278359,1742175040883,-1536.4,8.493e-05,2]
[356278360,1742175040893,-4693.73,8.493e-05,2]
[356278361,1742175040903,-151.0,8.493e-05,2]
[356278362,1742175040912,-670.18,8.493e-05,2]
[356278363,1742175040922,-2676.72,8.493e-05,2]
[356278364,1742175040932,-3318.12,8.493e-05,2]
[356278365,1742175040942,-500.0,8.493e-05,2]
[356278366,1742175040951,-525.32,8.493e-05,2]
[356278367,1742175040961,-1933.14,8.493e-05,2]
[356278368,1742175040971,-670.65,8.493e-05,2]
[356278369,1742175040980,-500.0,8.493e-05,2]
[356278370,1742175040990,-500.0,8.493e-05,2]
[356278371,1742175041001,-500.0,8.493e-05,2]
[356278372,1742175041011,-732.04,8.493e-05,2]
[356278373,1742175041021,-500.0,8.493e-05,2]
[356278374,1742175041031,-8855.4,8.493e-05,2]
[356278375,1742175041040,-500.0,8.493e-05,2]
[356278376,1742175041049,-145250.64,8.493e-05,2]
[356278377,1742175041059,-620.78,8.493e-05,2]
[356278378,1742175041069,-500.0,8.493e-05,2]
[356278379,1742175041078,-2942.32,8.493e-05,2]
[356278380,1742175041088,-500.0,8.493e-05,2]
[356278381,1742175041099,-3958.87,8.493e-05,2]
[356278382,1742175041108,-500.0,8.493e-05,2]
[356278384,1742175041118,-500.0,8.493e-05,2]
[356278386,1742175041128,-9547.78,8.493e-05,2]
[356278387,1742175041138,-500.0,8.493e-05,2]
[356278388,1742175041147,-8659.17,8.493e-05,2]
[356278389,1742175041157,-2541.26071382,8.493e-05,2]
[356278390,1742175041325,-3689.50928618,8.493e-05,2]
[356278391,1742175041335,-500.0,8.493e-05,2]
[356278392,1742175041344,-6509.89,8.493e-05,2]
[356278393,1742175041353,-500.0,8.493e-05,2]
[356278394,1742175041363,-2090.17,8.493e-05,2]
[356278395,1742175041372,-500.0,8.493e-05,2]
[356278396,1742175041381,-500.0,8.493e-05,2]
[356278397,1742175041391,-500.0,8.493e-05,2]
[356278398,1742175041400,-500.0,8.493e-05,2]
[356278399,1742175041410,-500.0,8.493e-05,2]
[356278400,1742175041419,-797.35,8.493e-05,2]
[356278401,1742175041429,-500.0,8.493e-05,2]
[356278402,1742175041438,-961.13,8.493e-05,2]
[356278403,1742175041447,-500.0,8.493e-05,2]
[356278404,1742175041458,-870.32,8.493e-05,2]
[356278405,1742175041476,-500.0,8.493e-05,2]
[356278406,1742175041486,-500.0,8.493e-05,2]
[356278407,1742175041495,-748.79,8.493e-05,2]
[356278408,1742175041506,-500.0,8.493e-05,2]
[356278409,1742175041515,-500.0,8.493e-05,2]
[356278410,1742175041525,-1297.61,8.493e-05,2]
[356278411,1742175041534,-797.14,8.493e-05,2]
[356278412,1742175041544,-151.0,8.493e-05,2]
[356278413,1742175041554,-151.0,8.493e-05,2]
[356278414,1742175041563,-236.819156,8.493e-05,2]
[356278415,1742175041572,-500.0,8.493e-05,2]
[356278416,1742175041582,-500.0,8.493e-05,2]
[356278417,1742175041591,-500.0,8.493e-05,2]
[356278418,1742175041601,-500.0,8.493e-05,2]
[356278419,1742175041611,-4164.68,8.493e-05,2]
[356278420,1742175041620,-500.0,8.493e-05,2]
[356278421,1742175041630,-500.0,8.493e-05,2]
[356278422,1742175041640,-827.13,8.493e-05,2]
[356278423,1742175041650,-500.0,8.493e-05,2]
[356278424,1742175041660,-500.0,8.493e-05,2]
[356278425,1742175041669,-500.0,8.493e-05,2]
[356278426,1742175041678,-500.0,8.493e-05,2]
[356278427,1742175041688,-1312.33,8.493e-05,2]
[356278428,1742175041698,-500.0,8.493e-05,2]
[356278429,1742175041708,-721.18,8.493e-05,2]
[356278430,1742175041717,-500.0,8.493e-05,2]
[356278431,1742175041727,-500.0,8.493e-05,2]
[356278432,1742175041737,-1593.5,8.493e-05,2]
[356278433,1742175041746,-500.0,8.493e-05,2]
[356278434,1742175041757,-1000.0,8.72e-05,2]
[356278435,1742175041766,-500.0,8.767e-05,2]
[356278436,1742175041776,-163.46499488,8.767e-05,2]
[356278437,1742175041786,-500.0,8.767e-05,2]
[356278438,1742175041797,-500.0,8.767e-05,2]
[356278439,1742175041806,-500.0,8.767e-05,2]
[356278440,1742175041816,-500.0,8.767e-05,2]
[356278441,1742175041825,-500.0,8.767e-05,2]
[356278442,1742175041836,-189.06847238,8.767e-05,2]
[356278443,1742175041845,-500.0,8.767e-05,2]
[356278444,1742175041855,-528.77612884,8.767e-05,2]
[356278445,1742175041866,-500.0,8.767e-05,2]
[356278446,1742175041879,-500.0,8.767e-05,2]
[356278447,1742175041890,-500.0,8.767e-05,2]
[356278448,1742175041899,-500.0,8.767e-05,2]
[356278449,1742175041909,-422.48256439,8.767e-05,2]
[356278450,1742175041919,-500.0,8.767e-05,2]
[356278451,1742175041928,-767.25,8.767e-05,2]
[356278452,1742175041938,-500.0,8.767e-05,2]
[356278453,1742175042122,-500.0,8.767e-05,2]
[356278454,1742175042132,-500.0,8.767e-05,2]
[356278455,1742175042142,-500.0,8.767e-05,2]
[356278456,1742175042152,-568.46552142,8.767e-05,2]
[356278457,1742175042165,-26.90741258,8.767e-05,2]
[356278458,1742175042175,-500.0,8.767e-05,2]
[356278459,1742175042184,-500.0,8.767e-05,2]
[356278460,1742175042194,-500.0,8.767e-05,2]
[356278461,1742175042204,-745.08,8.767e-05,2]
[356278462,1742175042213,-500.0,8.767e-05,2]
[356278463,1742175042223,-500.0,8.767e-05,2]
[356278464,1742175042232,-918.21,8.767e-05,2]
[356278465,1742175042241,-500.0,8.767e-05,2]
[356278466,1742175042252,-500.0,8.767e-05,2]
[356278467,1742175042262,-500.0,8.767e-05,2]
[356278468,1742175042273,-500.0,8.767e-05,2]
[356278469,1742175042283,-500.0,8.767e-05,2]
[356278470,1742175042293,-500.0,8.767e-05,2]
[356278471,1742175042303,-500.0,8.767e-05,2]
[356278472,1742175042313,-500.0,8.767e-05,2]
[356278473,1742175042323,-500.0,8.767e-05,2]
[356278474,1742175042333,-500.0,8.767e-05,2]
[356278475,1742175042343,-500.0,8.767e-05,2]
[356278476,1742175042352,-500.0,8.767e-05,2]
[356278477,1742175042362,-500.0,8.767e-05,2]
[356278478,1742175042372,-500.0,8.767e-05,2]
[356278479,1742175042382,-500.0,8.767e-05,2]
[356278480,1742175042391,-500.0,8.767e-05,2]
[356278481,1742175042402,-500.0,8.767e-05,2]
[356278482,1742175042411,-500.0,8.767e-05,2]
[356278483,1742175042421,-500.0,8.767e-05,2]
[356278484,1742175042431,-500.0,8.767e-05,2]
[356278485,1742175042440,-186.10049316,8.767e-05,2]
[356278486,1742175042450,-500.0,8.767e-05,2]
[356278487,1742175042459,-500.0,8.767e-05,2]
[356278488,1742175042469,-500.0,8.767e-05,2]
[356278489,1742175042479,-500.0,8.767e-05,2]
[356278490,1742175042489,-500.0,8.767e-05,2]
[356278491,1742175042499,-500.0,8.767e-05,2]
[356278492,1742175042511,-541.2,8.767e-05,2]
[356278493,1742175042521,-500.0,8.767e-05,2]
[356278494,1742175042530,-500.0,8.767e-05,2]
[356278495,1742175042540,-500.0,8.767e-05,2]
[356278496,1742175042550,-500.0,8.767e-05,2]
[356278497,1742175042561,-500.0,8.767e-05,2]
[356278498,1742175042573,-500.0,8.767e-05,2]
[356278499,1742175042583,-500.0,8.767e-05,2]
[356278500,1742175042592,-2729.06,8.767e-05,2]
[356278501,1742175042602,-500.0,8.767e-05,2]
[356278502,1742175042612,-5610.07,8.767e-05,2]
[356278503,1742175042621,-500.0,8.767e-05,2]
[356278504,1742175042631,-500.0,8.767e-05,2]
[356278505,1742175042641,-13504.04,8.767e-05,2]
[356278506,1742175042650,-6245.41,8.767e-05,2]
[356278507,1742175042660,-500.0,8.767e-05,2]
[356278508,1742175042669,-1536.4,8.767e-05,2]
[356278509,1742175042679,-4693.73,8.767e-05,2]
[356278510,1742175042688,-151.0,8.767e-05,2]
[356278511,1742175042698,-151.0,8.767e-05,2]
[356278512,1742175042708,-670.18,8.767e-05,2]
[356278513,1742175042718,-2676.72,8.767e-05,2]
[356278514,1742175042727,-3318.12,8.767e-05,2]
[356278515,1742175042737,-500.0,8.767e-05,2]
[356278516,1742175042746,-525.32,8.767e-05,2]
[356278517,1742175042758,-1933.14,8.767e-05,2]
[356278518,1742175042768,-670.65,8.767e-05,2]
[356278519,1742175042777,-500.0,8.767e-05,2]
[356278520,1742175042787,-500.0,8.767e-05,2]
[356278521,1742175042802,-500.0,8.767e-05,2]
[356278522,1742175042811,-732.04,8.767e-05,2]
[356278523,1742175042820,-500.0,8.767e-05,2]
[356278524,1742175042829,-8855.4,8.767e-05,2]
[356278525,1742175042839,-500.0,8.767e-05,2]
[356278526,1742175042849,-72418.99718666,8.767e-05,2]
[356278527,1742175043039,-554.114,8.564e-05,2]
[356278528,1742175043049,-48922.10193511,8.767e-05,2]
[356278534,1742175043819,-1284.19626494,8.767e-05,2]
[356278547,1742175046772,-500.0,8.219e-05,2]
[356278548,1742175046783,-1070.44153005,8.219e-05,2]
[356278607,1742176231959,-801.63571961,8.119e-05,2]
[356278609,1742176231969,-500.0,8.218e-05,2]
[356278611,1742176231979,-589.72523122,8.218e-05,2]
[356278614,1742176231988,-500.0,8.218e-05,2]
[356278616,1742176231998,-500.0,8.218e-05,2]
[356278617,1742176232007,-500.0,8.218e-05,2]
[356278619,1742176232017,-231.19862522,8.218e-05,2]
[356278621,1742176232026,-500.0,8.219e-05,2]
[356278622,1742176232036,-518.36723688,8.219e-05,2]
[356278623,1742176232045,-500.0,8.219e-05,2]
[356278624,1742176232055,-500.0,8.219e-05,2]
[356278625,1742176232065,-500.0,8.219e-05,2]
[356278626,1742176232074,-500.0,8.219e-05,2]
[356278627,1742176232084,-500.0,8.219e-05,2]
[356278628,1742176232094,-500.0,8.219e-05,2]
[356278629,1742176232105,-503.87,8.219e-05,2]